Workbook

Sheet Detailed Analysis
B2: Property Address | D2: 465 Colorado Boulevard, Idaho Springs, CO 80452
B4: Property Details | C4: Bedroom(s) | E4: Bath(s) | G4: Square Feet | I4: Year Built | K4: Other Information
C5: tbd | E5: tbd | G5: tbd | I5: tbd | K5: 0.42 acres / 18,480 sq ft
B7: Cost Assumptions | F7: Financing Assumptions | J7: CF & ROI (Outsourced PM)
B8: Purchase Price | D8: 1400000 | F8: Downpayment | H8: 0.25 | J8: Monthly Cash Flow | L8: =$E$60-$E$61 -> 4938.323801
B9: Improvements | D9: 0 | F9: Finance Amount | H9: =(1-H8)*D8 -> 1050000 | J9: Annual Cash Flow | L9: =$F$62 -> 59259.88561
B10: Set Up Costs | D10: 0 | F10: Downpayment Amount | H10: =H8*D8 -> 350000 | J10: Cash ROI | L10: =$F$63 -> 0.1693139589
B11: Closing Costs | D11: 0 | F11: Interest Rate | H11: 0.07
B12: Total Cost | D12: =D8+D9+D10+D11 -> 1400000 | F12: Mortgage (Years) | H12: 30
F13: Mortgage Payment | H13: =-PMT(H11/12,12*H12, H9) -> 6985.676199 | J13: CF & ROI (Doing My Own PM)
B14: Revenue Assumptions | F14: Cash Outlay | H14: =H10+D9+D10+D11 -> 350000 | J14: Monthly Cash Flow | L14: =L8+(F50+F51)/12 -> 4938.323801
B15: Monthly Rent | D15: 13100 | J15: Annual Cash Flow | L15: =L9+F50+F51 -> 59259.88561
B16: Vacancy Rate | D16: 0 | F16: Cash Flow (Based on Outsourced PM #'s) | J16: Cash ROI | L16: =L15/H14 -> 0.1693139589
F17: Cash Flow | H17: =+$L$9/$H$14 -> 0.1693139589
B18: Additional Inputs | F18: Appreciation | H18: =(($D$8*(1+$D$19))-$D$8)/$H$14 -> 0.2
B19: Annual Appreciation Rate | D19: 0.05 | F19: Debt Paydown | H19: =-(CUMPRINC($H$11/12,$H$12*12,$H$9,1,12,0))/$H$14 -> 0.03047429488
B20: Effective Tax Rate | D20: 0.24 | F20: Depreciation | H20: =+($D$8*0.85/27.5)*$D$20/$H$14 -> 0.02967272727
F21: TOTAL ROI | H21: =+SUM(H17:H20) -> 0.429460981
B24: Additional Notes
B25: County Assessor Link: https://assessor.co.clear-creek.co.us/eagleassessor/taxweb/account.jsp?accountNum=R004288&doc= *See Offer Memorandum for the rent breakdown details. *Owner does all the maintenance work and management himself.
F32: Year 1 | G32: Year 2 | H32: Year 3 | I32: Year 4 | J32: Year 5 | K32: Year 6 | L32: Year 7 | M32: Year 8 | N32: Year 9 | O32: Year 10 | P32: Year 11 | Q32: Year 12 | R32: Year 13 | S32: Year 14 | T32: Year 15 | U32: Year 16 | V32: Year 17 | W32: Year 18 | X32: Year 19 | Y32: Year 20 | Z32: Year 21 | AA32: Year 22 | AB32: Year 23 | AC32: Year 24 | AD32: Year 25 | AE32: Year 26 | AF32: Year 27 | AG32: Year 28 | AH32: Year 29 | AI32: Year 30
B33: Annual Revenue Increase | E33: 0.02 | F33: 0 | G33: =E33 -> 0.02 | H33: =E33 -> 0.02 | I33: =E33 -> 0.02 | J33: =E33 -> 0.02 | K33: =E33 -> 0.02 | L33: =E33 -> 0.02 | M33: =E33 -> 0.02 | N33: =E33 -> 0.02 | O33: =E33 -> 0.02 | P33: =E33 -> 0.02 | Q33: =E33 -> 0.02 | R33: =E33 -> 0.02 | S33: =E33 -> 0.02 | T33: =E33 -> 0.02 | U33: =E33 -> 0.02 | V33: =G33 -> 0.02 | W33: =E33 -> 0.02 | X33: =E33 -> 0.02 | Y33: =E33 -> 0.02 | Z33: =E33 -> 0.02 | AA33: =E33 -> 0.02 | AB33: =E33 -> 0.02 | AC33: =E33 -> 0.02 | AD33: =E33 -> 0.02 | AE33: =E33 -> 0.02 | AF33: =E33 -> 0.02 | AG33: =E33 -> 0.02 | AH33: =E33 -> 0.02 | AI33: =E33 -> 0.02
B34: Annual Operating Expense Increase | E34: 0.02 | F34: 0 | G34: =E34 -> 0.02 | H34: =E34 -> 0.02 | I34: =E34 -> 0.02 | J34: =E34 -> 0.02 | K34: =E34 -> 0.02 | L34: =E34 -> 0.02 | M34: =E34 -> 0.02 | N34: =E34 -> 0.02 | O34: =E34 -> 0.02 | P34: =E34 -> 0.02 | Q34: =E34 -> 0.02 | R34: =E34 -> 0.02 | S34: =E34 -> 0.02 | T34: =E34 -> 0.02 | U34: =E34 -> 0.02 | V34: =G34 -> 0.02 | W34: =E34 -> 0.02 | X34: =E34 -> 0.02 | Y34: =E34 -> 0.02 | Z34: =E34 -> 0.02 | AA34: =E34 -> 0.02 | AB34: =E34 -> 0.02 | AC34: =E34 -> 0.02 | AD34: =E34 -> 0.02 | AE34: =E34 -> 0.02 | AF34: =E34 -> 0.02 | AG34: =E34 -> 0.02 | AH34: =E34 -> 0.02 | AI34: =E34 -> 0.02
E36: Monthly | F36: Year 1 | G36: Year 2 | H36: Year 3 | I36: Year 4 | J36: Year 5 | K36: Year 6 | L36: Year 7 | M36: Year 8 | N36: Year 9 | O36: Year 10 | P36: Year 11 | Q36: Year 12 | R36: Year 13 | S36: Year 14 | T36: Year 15 | U36: Year 16 | V36: Year 17 | W36: Year 18 | X36: Year 19 | Y36: Year 20 | Z36: Year 21 | AA36: Year 22 | AB36: Year 23 | AC36: Year 24 | AD36: Year 25 | AE36: Year 26 | AF36: Year 27 | AG36: Year 28 | AH36: Year 29 | AI36: Year 30
B37: Revenues
B38: Rental Income | E38: =+D15 -> 13100 | F38: =E38*12 -> 157200 | G38: =F38+(G33*F38) -> 160344 | H38: 163550.88 | I38: 166821.8976 | J38: =I38+(J33*I38) -> 170158.3356 | K38: 173561.5023 | L38: 177032.7323 | M38: =L38+(M33*L38) -> 180573.387 | N38: 184184.8547 | O38: 187868.5518 | P38: 191625.9228 | Q38: 195458.4413 | R38: 199367.6101 | S38: 203354.9623 | T38: 207422.0616 | U38: 211570.5028 | V38: 215801.9128 | W38: 220117.9511 | X38: 224520.3101 | Y38: 229010.7163 | Z38: 233590.9306 | AA38: 238262.7493 | AB38: 243028.0042 | AC38: 247888.5643 | AD38: 252846.3356 | AE38: 257903.2623 | AF38: 263061.3276 | AG38: 268322.5541 | AH38: 273689.0052 | AI38: 279162.7853
B39: Vacancy/Loss Rate | E39: =+D16 -> 0 | F39: =+E39 -> 0 | G39: =+$E$39 -> 0 | H39: =+$E$39 -> 0 | I39: =+$E$39 -> 0 | J39: =+$E$39 -> 0 | K39: =+$E$39 -> 0 | L39: =+$F$39 -> 0 | M39: 0 | N39: 0 | O39: 0 | P39: 0 | Q39: 0 | R39: 0 | S39: 0 | T39: 0 | U39: 0 | V39: 0 | W39: 0 | X39: 0 | Y39: 0 | Z39: 0 | AA39: 0 | AB39: 0 | AC39: 0 | AD39: 0 | AE39: 0 | AF39: 0 | AG39: 0 | AH39: 0 | AI39: 0
B40: Vacancy/Loss Value | E40: =-($E$38*$E$39) -> 0 | F40: =-(F38*F39) -> 0 | G40: =-(G38*G39) -> 0 | H40: =-(H38*H39) -> 0 | I40: 0 | J40: 0 | K40: 0 | L40: =-(L38*L39) -> 0 | M40: 0 | N40: 0 | O40: 0 | P40: 0 | Q40: 0 | R40: 0 | S40: 0 | T40: 0 | U40: 0 | V40: 0 | W40: 0 | X40: 0 | Y40: 0 | Z40: 0 | AA40: 0 | AB40: 0 | AC40: 0 | AD40: 0 | AE40: 0 | AF40: 0 | AG40: 0 | AH40: 0 | AI40: 0
B41: Gross Income | E41: =E38+E40 -> 13100 | F41: =F38+F40 -> 157200 | G41: =G38+G40 -> 160344 | H41: =H38+H40 -> 163550.88 | I41: 166821.8976 | J41: 170158.3356 | K41: 173561.5023 | L41: 177032.7323 | M41: 180573.387 | N41: 184184.8547 | O41: 187868.5518 | P41: 191625.9228 | Q41: 195458.4413 | R41: 199367.6101 | S41: 203354.9623 | T41: 207422.0616 | U41: 211570.5028 | V41: 215801.9128 | W41: 220117.9511 | X41: 224520.3101 | Y41: 229010.7163 | Z41: 233590.9306 | AA41: 238262.7493 | AB41: 243028.0042 | AC41: 247888.5643 | AD41: 252846.3356 | AE41: 257903.2623 | AF41: 263061.3276 | AG41: 268322.5541 | AH41: 273689.0052 | AI41: 279162.7853
B43: Expenses
B44: Property Taxes | D44: Annual | E44: 310 | F44: =E44 -> 310 | G44: =F44+(G34*F44) -> 316.2 | H44: 322.524 | I44: 328.97448 | J44: =I44+(J34*I44) -> 335.5539696 | K44: 342.265049 | L44: 349.11035 | M44: =L44+(M34*L44) -> 356.092557 | N44: 363.2144081 | O44: 370.4786963 | P44: 377.8882702 | Q44: 385.4460356 | R44: 393.1549563 | S44: 401.0180554 | T44: 409.0384165 | U44: 417.2191849 | V44: 425.5635686 | W44: 434.0748399 | X44: 442.7563367 | Y44: 451.6114635 | Z44: 460.6436928 | AA44: 469.8565666 | AB44: 479.2536979 | AC44: 488.8387719 | AD44: 498.6155473 | AE44: 508.5878583 | AF44: 518.7596154 | AG44: 529.1348078 | AH44: 539.7175039 | AI44: 550.511854
B45: Insurance | D45: Annual | E45: 2006 | F45: =E45 -> 2006 | G45: =F45+(G34*F45) -> 2046.12 | H45: 2087.0424 | I45: 2128.783248 | J45: =I45+(J34*I45) -> 2171.358913 | K45: 2214.786091 | L45: 2259.081813 | M45: =L45+(M34*L45) -> 2304.263449 | N45: 2350.348718 | O45: 2397.355693 | P45: 2445.302807 | Q45: 2494.208863 | R45: 2544.09304 | S45: 2594.974901 | T45: 2646.874399 | U45: 2699.811887 | V45: 2753.808124 | W45: 2808.884287 | X45: 2865.061973 | Y45: 2922.363212 | Z45: 2980.810476 | AA45: 3040.426686 | AB45: 3101.23522 | AC45: 3163.259924 | AD45: 3226.525122 | AE45: 3291.055625 | AF45: 3356.876737 | AG45: 3424.014272 | AH45: 3492.494558 | AI45: 3562.344449
B46: Maintenance & Repairs | D46: Annual | E46: 9996 | F46: =E46 -> 9996 | G46: =F46+(G34*F46) -> 10195.92 | H46: 10399.8384 | I46: 10607.83517 | J46: =I46+(J34*I46) -> 10819.99187 | K46: 11036.39171 | L46: 11257.11954 | M46: =L46+(M34*L46) -> 11482.26193 | N46: 11711.90717 | O46: 11946.14532 | P46: 12185.06822 | Q46: 12428.76959 | R46: 12677.34498 | S46: 12930.89188 | T46: 13189.50972 | U46: 13453.29991 | V46: 13722.36591 | W46: 13996.81323 | X46: 14276.74949 | Y46: 14562.28448 | Z46: 14853.53017 | AA46: 15150.60077 | AB46: 15453.61279 | AC46: 15762.68504 | AD46: 16077.93875 | AE46: 16399.49752 | AF46: 16727.48747 | AG46: 17062.03722 | AH46: 17403.27796 | AI46: 17751.34352
B47: Utilities (Water/Elec/Gas/Sewer) | D47: Annual | E47: 0 | F47: 0 | G47: =F47+(G34*F47) -> 0 | H47: 0 | I47: 0 | J47: =I47+(J34*I47) -> 0 | K47: 0 | L47: 0 | M47: =L47+(M34*L47) -> 0 | N47: 0 | O47: 0 | P47: 0 | Q47: 0 | R47: 0 | S47: 0 | T47: 0 | U47: 0 | V47: 0 | W47: 0 | X47: 0 | Y47: 0 | Z47: 0 | AA47: 0 | AB47: 0 | AC47: 0 | AD47: 0 | AE47: 0 | AF47: 0 | AG47: 0 | AH47: 0 | AI47: 0
B48: Advertising | D48: Annual | E48: 0 | F48: 0 | G48: =F48+(G34*F48) -> 0 | H48: 0 | I48: 0 | J48: =I48+(J34*I48) -> 0 | K48: 0 | L48: 0 | M48: =L48+(M34*L48) -> 0 | N48: 0 | O48: 0 | P48: 0 | Q48: 0 | R48: 0 | S48: 0 | T48: 0 | U48: 0 | V48: 0 | W48: 0 | X48: 0 | Y48: 0 | Z48: 0 | AA48: 0 | AB48: 0 | AC48: 0 | AD48: 0 | AE48: 0 | AF48: 0 | AG48: 0 | AH48: 0 | AI48: 0
B49: Administrative | D49: Annual | E49: 0 | F49: 0 | G49: =F49+(G34*F49) -> 0 | H49: 0 | I49: 0 | J49: =I49+(J34*I49) -> 0 | K49: 0 | L49: 0 | M49: =L49+(M34*L49) -> 0 | N49: 0 | O49: 0 | P49: 0 | Q49: 0 | R49: 0 | S49: 0 | T49: 0 | U49: 0 | V49: 0 | W49: 0 | X49: 0 | Y49: 0 | Z49: 0 | AA49: 0 | AB49: 0 | AC49: 0 | AD49: 0 | AE49: 0 | AF49: 0 | AG49: 0 | AH49: 0 | AI49: 0
B50: Variable Cost PM | D50: (% Income) | E50: 0 | F50: =E50*F41 -> 0 | G50: =$E50*G41 -> 0 | H50: 0 | I50: 0 | J50: =$E50*J41 -> 0 | K50: =$E50*K41 -> 0 | L50: =$E50*L41 -> 0 | M50: 0 | N50: 0 | O50: 0 | P50: 0 | Q50: 0 | R50: 0 | S50: 0 | T50: 0 | U50: 0 | V50: 0 | W50: 0 | X50: 0 | Y50: 0 | Z50: 0 | AA50: 0 | AB50: 0 | AC50: 0 | AD50: 0 | AE50: 0 | AF50: 0 | AG50: 0 | AH50: 0 | AI50: 0
B51: Fixed Cost PM | D51: Annual | E51: 0 | F51: =+E51 -> 0 | G51: =F51+(G34*F51) -> 0 | H51: =G51+(H34*G51) -> 0 | I51: 0 | J51: =I51+(J34*I51) -> 0 | K51: 0 | L51: 0 | M51: =L51+(M34*L51) -> 0 | N51: 0 | O51: 0 | P51: 0 | Q51: 0 | R51: 0 | S51: 0 | T51: 0 | U51: 0 | V51: 0 | W51: 0 | X51: 0 | Y51: 0 | Z51: 0 | AA51: 0 | AB51: 0 | AC51: 0 | AD51: 0 | AE51: 0 | AF51: 0 | AG51: 0 | AH51: 0 | AI51: 0
B52: Trash | D52: Annual | E52: 1800 | F52: =E52 -> 1800 | G52: =F52+(G34*F52) -> 1836 | H52: =G52+(H34*G52) -> 1872.72 | I52: 1910.1744 | J52: =I52+(J34*I52) -> 1948.377888 | K52: 1987.345446 | L52: 2027.092355 | M52: =L52+(M34*L52) -> 2067.634202 | N52: 2108.986886 | O52: 2151.166624 | P52: 2194.189956 | Q52: 2238.073755 | R52: 2282.83523 | S52: 2328.491935 | T52: 2375.061774 | U52: 2422.563009 | V52: 2471.014269 | W52: 2520.434555 | X52: 2570.843246 | Y52: 2622.260111 | Z52: 2674.705313 | AA52: 2728.199419 | AB52: 2782.763407 | AC52: 2838.418676 | AD52: 2895.187049 | AE52: 2953.09079 | AF52: 3012.152606 | AG52: 3072.395658 | AH52: 3133.843571 | AI52: 3196.520443
B53: TBD | D53: Monthly | E53: 0 | F53: =E53 -> 0 | G53: =F53+(G34*F53) -> 0 | H53: =G53+(H34*G53) -> 0 | I53: 0 | J53: =I53+(J34*I53) -> 0 | K53: 0 | L53: 0 | M53: =L53+(M34*L53) -> 0 | N53: 0 | O53: 0 | P53: 0 | Q53: 0 | R53: 0 | S53: 0 | T53: 0 | U53: 0 | V53: 0 | W53: 0 | X53: 0 | Y53: 0 | Z53: 0 | AA53: 0 | AB53: 0 | AC53: 0 | AD53: 0 | AE53: 0 | AF53: 0 | AG53: 0 | AH53: 0 | AI53: 0
B54: Total Expenses | F54: =SUM(F44:F53) -> 14112 | G54: =SUM(G44:G53) -> 14394.24 | H54: =SUM(H44:H53) -> 14682.1248 | I54: 14975.7673 | J54: 15275.28264 | K54: 15580.78829 | L54: 15892.40406 | M54: 16210.25214 | N54: 16534.45718 | O54: 16865.14633 | P54: 17202.44925 | Q54: 17546.49824 | R54: 17897.4282 | S54: 18255.37677 | T54: 18620.4843 | U54: 18992.89399 | V54: 19372.75187 | W54: 19760.20691 | X54: 20155.41105 | Y54: 20558.51927 | Z54: 20969.68965 | AA54: 21389.08345 | AB54: 21816.86511 | AC54: 22253.20242 | AD54: 22698.26646 | AE54: 23152.23179 | AF54: 23615.27643 | AG54: 24087.58196 | AH54: 24569.3336 | AI54: 25060.72027
B55: Expenses as % of Gross Income | F55: =(F54-F40)/F38 -> 0.08977099237 | G55: =(G54-G40)/G38 -> 0.08977099237 | H55: =(H54-H40)/H38 -> 0.08977099237 | I55: 0.08977099237 | J55: 0.08977099237 | K55: 0.08977099237 | L55: 0.08977099237 | M55: 0.08977099237 | N55: 0.08977099237 | O55: 0.08977099237 | P55: 0.08977099237 | Q55: 0.08977099237 | R55: 0.08977099237 | S55: 0.08977099237 | T55: 0.08977099237 | U55: 0.08977099237 | V55: 0.08977099237 | W55: 0.08977099237 | X55: 0.08977099237 | Y55: 0.08977099237 | Z55: 0.08977099237 | AA55: 0.08977099237 | AB55: 0.08977099237 | AC55: 0.08977099237 | AD55: 0.08977099237 | AE55: 0.08977099237 | AF55: 0.08977099237 | AG55: 0.08977099237 | AH55: 0.08977099237 | AI55: 0.08977099237
B57: Net Operating Income (NOI) | F57: =F41-F54 -> 143088 | G57: =G41-G54 -> 145949.76 | H57: 148868.7552 | I57: 151846.1303 | J57: 154883.0529 | K57: 157980.714 | L57: 161140.3282 | M57: 164363.1348 | N57: 167650.3975 | O57: 171003.4055 | P57: 174423.4736 | Q57: 177911.943 | R57: 181470.1819 | S57: 185099.5855 | T57: 188801.5772 | U57: 192577.6088 | V57: 196429.161 | W57: 200357.7442 | X57: 204364.8991 | Y57: 208452.1971 | Z57: 212621.241 | AA57: 216873.6658 | AB57: 221211.1391 | AC57: 225635.3619 | AD57: 230148.0692 | AE57: 234751.0305 | AF57: 239446.0511 | AG57: 244234.9722 | AH57: 249119.6716 | AI57: 254102.065
B59: Cash Flow
B60: NOI (Cash Available) | E60: =$F$60/12 -> 11924 | F60: =F57 -> 143088 | G60: =G57 -> 145949.76 | H60: 148868.7552 | I60: 151846.1303 | J60: 154883.0529 | K60: 157980.714 | L60: 161140.3282 | M60: 164363.1348 | N60: 167650.3975 | O60: 171003.4055 | P60: =P57 -> 174423.4736 | Q60: =Q57 -> 177911.943 | R60: =R57 -> 181470.1819 | S60: =S57 -> 185099.5855 | T60: =T57 -> 188801.5772 | U60: =U57 -> 192577.6088 | V60: 196429.161 | W60: 200357.7442 | X60: 204364.8991 | Y60: 208452.1971 | Z60: 212621.241 | AA60: 216873.6658 | AB60: 221211.1391 | AC60: 225635.3619 | AD60: 230148.0692 | AE60: =AE57 -> 234751.0305 | AF60: =AF57 -> 239446.0511 | AG60: =AG57 -> 244234.9722 | AH60: =AH57 -> 249119.6716 | AI60: =AI57 -> 254102.065
B61: Mortgage | E61: =$H$13 -> 6985.676199 | F61: =E61*12 -> 83828.11439 | G61: =F61 -> 83828.11439 | H61: 83828.11439 | I61: 83828.11439 | J61: =I61 -> 83828.11439 | K61: 83828.11439 | L61: 83828.11439 | M61: =L61 -> 83828.11439 | N61: 83828.11439 | O61: 83828.11439 | P61: 83828.11439 | Q61: 83828.11439 | R61: 83828.11439 | S61: 83828.11439 | T61: 83828.11439 | U61: 83828.11439 | V61: 83828.11439 | W61: 83828.11439 | X61: 83828.11439 | Y61: 83828.11439 | Z61: 83828.11439 | AA61: 83828.11439 | AB61: 83828.11439 | AC61: 83828.11439 | AD61: 83828.11439 | AE61: =AD61 -> 83828.11439 | AF61: =AE61 -> 83828.11439 | AG61: =AF61 -> 83828.11439 | AH61: =AG61 -> 83828.11439 | AI61: =AH61 -> 83828.11439
B62: Total Cash Flow | E62: =$E$60-$E$61 -> 4938.323801 | F62: =F60-F61 -> 59259.88561 | G62: =G60-G61 -> 62121.64561 | H62: 65040.64081 | I62: 68018.01591 | J62: 71054.93852 | K62: 74152.59958 | L62: 77312.21386 | M62: 80535.02042 | N62: 83822.28312 | O62: 87175.29107 | P62: =P60-P61 -> 90595.35918 | Q62: =Q60-Q61 -> 94083.82865 | R62: =R60-R61 -> 97642.06751 | S62: =S60-S61 -> 101271.4711 | T62: =T60-T61 -> 104973.4629 | U62: =U60-U61 -> 108749.4944 | V62: 112601.0466 | W62: 116529.6298 | X62: 120536.7847 | Y62: 124624.0827 | Z62: 128793.1266 | AA62: 133045.5514 | AB62: 137383.0247 | AC62: 141807.2475 | AD62: 146319.9548 | AE62: =AE60-AE61 -> 150922.9161 | AF62: =AF60-AF61 -> 155617.9368 | AG62: =AG60-AG61 -> 160406.8578 | AH62: =AH60-AH61 -> 165291.5572 | AI62: =AI60-AI61 -> 170273.9507
B63: Cash ROI | F63: =F62/H14 -> 0.1693139589 | G63: =G62/H14 -> 0.177490416 | H63: =H62/H14 -> 0.1858304023 | I63: =I62/H14 -> 0.1943371883 | J63: =J62/H14 -> 0.2030141101 | K63: =K62/H14 -> 0.2118645702 | L63: =L62/H14 -> 0.2208920396 | M63: =M62/H14 -> 0.2301000583 | N63: =N62/H14 -> 0.2394922375 | O63: =O62/H14 -> 0.2490722602 | P63: =P62/H14 -> 0.2588438834 | Q63: =Q62/H14 -> 0.268810939 | R63: =R62/H14 -> 0.2789773357 | S63: =S62/H14 -> 0.2893470604 | T63: =T62/H14 -> 0.2999241796 | U63: =U62/H14 -> 0.3107128411 | V63: =V62/H14 -> 0.3217172759 | W63: =W62/H14 -> 0.3329417994 | X63: =X62/H14 -> 0.3443908134 | Y63: =Y62/H14 -> 0.3560688076 | Z63: =Z62/H14 -> 0.3679803617 | AA63: =AA62/H14 -> 0.3801301469 | AB63: =AB62/H14 -> 0.3925229278 | AC63: =AC62/H14 -> 0.4051635643 | AD63: =AD62/H14 -> 0.4180570136 | AE63: =AE62/H14 -> 0.4312083318 | AF63: =AF62/H14 -> 0.4446226764 | AG63: =AG62/H14 -> 0.4583053079 | AH63: =AH62/H14 -> 0.4722615921 | AI63: =AI62/H14 -> 0.4864970019
B64: Equity Accrued | F64: =-CUMPRINC(H11/12,12*H12, H9, 1, 12, 0) -> 10666.00321 | G64: =-CUMPRINC(H11/12,12*H12, H9, 13, 24, 0) -> 11437.04944 | H64: =-CUMPRINC(H11/12,12*H12, H9, 25, 36, 0) -> 12263.83467 | I64: =-CUMPRINC(H11/12,12*H12, H9, 37, 48, 0) -> 13150.38827 | J64: =-CUMPRINC(H11/12,12*H12, H9, 49, 60, 0) -> 14101.0309 | K64: =-CUMPRINC(H11/12,12*H12, H9, 61, 72, 0) -> 15120.39557 | L64: =-CUMPRINC(H11/12,12*H12, H9, 73, 84, 0) -> 16213.45018 | M64: =-CUMPRINC(H11/12,12*H12, H9, 85, 96, 0) -> 17385.52181 | N64: =-CUMPRINC(H11/12,12*H12, H9, 97, 108, 0) -> 18642.32259 | O64: =-CUMPRINC(H11/12,12*H12, H9, 109, 120, 0) -> 19989.97759 | P64: =-CUMPRINC(H11/12,12*H12, H9, 121, 132, 0) -> 21435.05469 | Q64: =-CUMPRINC(H11/12,12*H12, H9, 133, 144, 0) -> 22984.59653 | R64: =-CUMPRINC(H11/12,12*H12, H9, 145, 156, 0) -> 24646.15487 | S64: =-CUMPRINC(H11/12,12*H12, H9, 157, 168, 0) -> 26427.8274 | T64: =-CUMPRINC(H11/12,12*H12, H9, 169, 180, 0) -> 28338.29718 | U64: =-CUMPRINC(H11/12,12*H12, H9, 181, 192, 0) -> 30386.87497 | V64: =-CUMPRINC(H11/12,12*H12, H9, 193, 204, 0) -> 32583.54462 | W64: =-CUMPRINC(H11/12,12*H12, H9, 205, 216, 0) -> 34939.01169 | X64: =-CUMPRINC(H11/12,12*H12, H9, 217, 228, 0) -> 37464.75567 | Y64: =-CUMPRINC(H11/12,12*H12, H9, 229, 240, 0) -> 40173.08589 | Z64: =-CUMPRINC(H11/12,12*H12, H9, 241, 252, 0) -> 43077.20152 | AA64: =-CUMPRINC(H11/12,12*H12, H9, 253, 264, 0) -> 46191.2559 | AB64: =-CUMPRINC(H11/12,12*H12, H9, 265, 276, 0) -> 49530.42552 | AC64: =-CUMPRINC(H11/12,12*H12, H9, 277, 288, 0) -> 53110.98399 | AD64: =-CUMPRINC(H11/12,12*H12, H9, 289, 300, 0) -> 56950.38132 | AE64: =-CUMPRINC(H11/12,12*H12, H9, 301, 312, 0) -> 61067.32899 | AF64: =-CUMPRINC(H11/12,12*H12, H9, 313, 324, 0) -> 65481.89114 | AG64: =-CUMPRINC(H11/12,12*H12, H9, 325, 336, 0) -> 70215.58234 | AH64: =-CUMPRINC(H11/12,12*H12, H9, 337, 348, 0) -> 75291.47246 | AI64: =-CUMPRINC(H11/12,12*H12, H9, 349, 360, 0) -> 80734.2991
B65: Total Return | F65: =F62+F64 -> 69925.88882 | G65: =G62+G64 -> 73558.69505 | H65: =H62+H64 -> 77304.47548 | I65: 81168.40418 | J65: 85155.96942 | K65: 89272.99514 | L65: 93525.66404 | M65: 97920.54223 | N65: 102464.6057 | O65: 107165.2687 | P65: 112030.4139 | Q65: 117068.4252 | R65: 122288.2224 | S65: 127699.2985 | T65: 133311.76 | U65: 139136.3694 | V65: 145184.5912 | W65: 151468.6415 | X65: 158001.5404 | Y65: 164797.1686 | Z65: 171870.3281 | AA65: 179236.8073 | AB65: 186913.4503 | AC65: 194918.2315 | AD65: 203270.3361 | AE65: 211990.2451 | AF65: 221099.8279 | AG65: 230622.4401 | AH65: 240583.0297 | AI65: 251008.2497
B66: Total ROI | F66: =F65/H14 -> 0.1997882538 | G66: =G65/H14 -> 0.2101677001 | H66: =H65/H14 -> 0.2208699299 | I66: =I65/H14 -> 0.2319097262 | J66: =J65/H14 -> 0.2433027698 | K66: =K65/H14 -> 0.2550657004 | L66: =L65/H14 -> 0.267216183 | M66: =M65/H14 -> 0.2797729778 | N66: =N65/H14 -> 0.2927560163 | O66: =O65/H14 -> 0.3061864819 | P66: =P65/H14 -> 0.3200868968 | Q66: =Q65/H14 -> 0.3344812148 | R66: =R65/H14 -> 0.3493949211 | S66: =S65/H14 -> 0.3648551387 | T66: =T65/H14 -> 0.3808907429 | U66: =U65/H14 -> 0.3975324839 | V66: =V65/H14 -> 0.4148131177 | W66: =W65/H14 -> 0.4327675471 | X66: =X65/H14 -> 0.4514329724 | Y66: =Y65/H14 -> 0.470849053 | Z66: =Z65/H14 -> 0.4910580803 | AA66: =AA65/H14 -> 0.5121051638 | AB66: =AB65/H14 -> 0.5340384293 | AC66: =AC65/H14 -> 0.5569092329 | AD66: =AD65/H14 -> 0.5807723888 | AE66: =AE65/H14 -> 0.6056864147 | AF66: =AF65/H14 -> 0.631713794 | AG66: =AG65/H14 -> 0.6589212575 | AH66: =AH65/H14 -> 0.6873800848 | AI66: =AI65/H14 -> 0.7171664279
B68: Cash Flow / Mortgage Ratio | F68: =F60/F61 -> 1.706921372 | G68: =G60/G61 -> 1.741059799 | H68: 1.775880995 | I68: 1.811398615 | J68: 1.847626587 | K68: 1.884579119 | L68: 1.922270701 | M68: 1.960716115 | N68: 1.999930438 | O68: 2.039929046 | P68: 2.080727627 | Q68: 2.12234218 | R68: 2.164789024 | S68: 2.208084804 | T68: 2.2522465 | U68: 2.29729143 | V68: 2.343237259 | W68: 2.390102004 | X68: 2.437904044 | Y68: 2.486662125 | Z68: 2.536395367 | AA68: 2.587123275 | AB68: 2.63886574 | AC68: 2.691643055 | AD68: 2.745475916 | AE68: 2.800385434 | AF68: =AF60/AF61 -> 2.856393143 | AG68: =AG60/AG61 -> 2.913521006 | AH68: =AH60/AH61 -> 2.971791426 | AI68: =AI60/AI61 -> 3.031227255
B71: Total Equity Accrued | F71: =F64 -> 10666.00321 | G71: =G64+F71 -> 22103.05265 | H71: 34366.88732 | I71: 47517.27559 | J71: =J64+I71 -> 61618.30649 | K71: 76738.70206 | L71: 92952.15224 | M71: =M64+L71 -> 110337.6741 | N71: =N64+M71 -> 128979.9966 | O71: 148969.9742 | P71: 170405.0289 | Q71: =Q64+P71 -> 193389.6254 | R71: 218035.7803 | S71: 244463.6077 | T71: 272801.9049 | U71: 303188.7799 | V71: 335772.3245 | W71: 370711.3362 | X71: 408176.0918 | Y71: 448349.1777 | Z71: 491426.3793 | AA71: 537617.6352 | AB71: 587148.0607 | AC71: 640259.0447 | AD71: 697209.426 | AE71: 758276.755 | AF71: 823758.6461 | AG71: 893974.2284 | AH71: 969265.7009 | AI71: 1050000
B72: Loan Payoff Amount | F72: =H9-F71 -> 1039333.997 | G72: =H9-G71 -> 1027896.947 | H72: =H9-H71 -> 1015633.113 | I72: =H9-I71 -> 1002482.724 | J72: =H9-J71 -> 988381.6935 | K72: =H9-K71 -> 973261.2979 | L72: =H9-L71 -> 957047.8478 | M72: =H9-M71 -> 939662.3259 | N72: =H9-N71 -> 921020.0034 | O72: =H9-O71 -> 901030.0258 | P72: =H9-P71 -> 879594.9711 | Q72: =H9-Q71 -> 856610.3746 | R72: =H9-R71 -> 831964.2197 | S72: =H9-S71 -> 805536.3923 | T72: =H9-T71 -> 777198.0951 | U72: =H9-U71 -> 746811.2201 | V72: =H9-V71 -> 714227.6755 | W72: =H9-W71 -> 679288.6638 | X72: =H9-X71 -> 641823.9082 | Y72: =H9-Y71 -> 601650.8223 | Z72: =H9-Z71 -> 558573.6207 | AA72: =H9-AA71 -> 512382.3648 | AB72: =H9-AB71 -> 462851.9393 | AC72: =H9-AC71 -> 409740.9553 | AD72: =H9-AD71 -> 352790.574 | AE72: =H9-AE71 -> 291723.245 | AF72: =H9-AF71 -> 226241.3539 | AG72: =H9-AG71 -> 156025.7716 | AH72: =H9-AH71 -> 80734.2991 | AI72: =H9-AI71 -> 0
